[Event "Romanian Open 2021"]
[Site "Alba Iulia"]
[Date "2021.11.21"]
[Round "1.1"]
[White "Manolache, Marius"]
[Black "Padurariu, Mihai-Edward"]
[Result "1/2-1/2"]
[ECO "E12"]
[WhiteElo "2506"]
[BlackElo "2251"]
[Annotator "ChessBase"]
[PlyCount "146"]
[EventDate "2021.11.21"]
[EventType "swiss"]
[EventCountry "ROU"]
[SourceTitle "playchess.com"]
[Source "ChessBase"]
[SourceQuality "1"]
[TimeControl "5400+30"]

1. d4 {[%emt 0:00:04]} e6 {[%emt 0:00:22]} 2. c4 {[%emt 0:00:16]} b6 {[%emt 0:02:02]} 3. a3 {[%emt 0:01:30]} Bb7 {[%emt 0:01:02]} 4. Nc3 {[%emt 0:00:11]} Nf6 {[%emt 0:00:15]} 5. Nf3 {[%emt 0:00:34]} g6 {[%emt 0:07:48]} 6. d5 {[%emt 0:11:59]} Bg7 {[%emt 0:06:59]} 7. g3 {[%emt 0:12:35]} O-O {[%emt 0:06:52]} 8. Bg2 {[%emt 0:00:10]} exd5 {[%emt 0:04:11]} 9. cxd5 {[%emt 0:00:10]} c5 {[%emt 0:01:36]} 10. O-O {[%emt 0:04:06]} d6 {[%emt 0:02:50]} 11. Bf4 {[%emt 0:09:57]} a6 {[%emt 0:06:15]} 12. Rc1 {[%emt 0:01:28]} Re8 {[%emt 0:02:47]} 13. b4 {[%emt 0:14:22]} Nh5 {[%emt 0:08:58]} 14. Bg5 {[%emt 0:02:01]} Qc7 {[%emt 0:01:22]} 15. Nd2 {[%emt 0:15:08]} h6 {[%emt 0:02:38]} 16. Be3 {[%emt 0:02:28]} Nd7 {[%emt 0:07:11]} 17. bxc5 {[%emt 0:03:00]} bxc5 {[%emt 0:05:01]} 18. Nc4 {[%emt 0:00:39]} Ne5 {[%emt 0:06:49]} 19. Nxe5 {[%emt 0:00:56]} Rxe5 {[%emt 0:00:02]} 20. Bd2 {[%emt 0:03:26]} f5 {[%emt 0:05:46]} 21. Qa4 {[%emt 0:07:01]} Rae8 {[%emt 0:03:37]} 22. Rb1 {[%emt 0:00:54]} R5e7 {[%emt 0:03:52]} 23. Qb3 {[%emt 0:03:06]} Nf6 {[%emt 0:06:31]} 24. e3 {[%emt 0:01:23]} Ng4 {[%emt 0:06:03]} 25. h3 {[%emt 0:01:22]} Ne5 {[%emt 0:00:26]} 26. e4 {[%emt 0:00:32]} Bc8 {[%emt 0:00:34]} 27. Qa4 {[%emt 0:01:17]} Kh7 {[%emt 0:00:43]} 28. f4 {[%emt 0:01:21]} Nd3 {[%emt 0:00:54]} 29. exf5 {[%emt 0:00:21]} gxf5 {[%emt 0:00:51]} 30. Qc4 {[%emt 0:00:18]} Bd4+ {[%emt 0:00:04]} 31. Kh2 {[%emt 0:00:10]} Nf2 {[%emt 0:00:08]} 32. Be1 {[%emt 0:01:15]} Ne4 {[%emt 0:01:05]} 33. Nxe4 {[%emt 0:01:35]} fxe4 {[%emt 0:00:01]} 34. Bc3 {[%emt 0:00:53]} Qa7 {[%emt 0:01:05]} 35. f5 {[%emt 0:00:37]} a5 {[%emt 0:00:24]} 36. Bxd4 {[%emt 0:00:51]} Ba6 {[%emt 0:00:48]} 37. Qa4 {[%emt 0:00:29]} Bxf1 {[%emt 0:00:33]} 38. Bf6 {[%emt 0:00:33]} Bxg2 {[%emt 0:00:29]} 39. Bxe7 {[%emt 0:00:07]} Qxe7 {[%emt 0:00:18]} 40. f6 {[%emt 0:00:18]} Qf7 {[%emt 0:00:31]} 41. Qc6 {[%emt 0:00:27]} Kg6 {[%emt 0:00:43]} 42. Rb7 {[%emt 0:00:08]} Qf8 {[%emt 0:00:27]} 43. Kxg2 {[%emt 0:00:55]} Kxf6 {[%emt 0:00:34]} 44. Rb1 {[%emt 0:00:43]} Qe7 {[%emt 0:00:26]} 45. Rb7 {[%emt 0:00:42]} Qf8 {[%emt 0:00:19]} 46. Rb1 {[%emt 0:00:36]} Qe7 {[%emt 0:00:18]} 47. Qa4 {[%emt 0:00:32]} Kg6 {[%emt 0:00:50]} 48. Rb7 {[%emt 0:00:24]} Qf8 {[%emt 0:00:35]} 49. Qd1 {[%emt 0:00:17]} Qf3+ {[%emt 0:00:26]} 50. Qxf3 {[%emt 0:00:06]} exf3+ {[%emt 0:00:01]} 51. Kxf3 {[%emt 0:00:07]} Re5 {[%emt 0:00:05]} 52. Ra7 {[%emt 0:00:11]} Rxd5 {[%emt 0:00:09]} 53. Rxa5 {[%emt 0:00:08]} Rd3+ {[%emt 0:00:56]} 54. Kf4 {[%emt 0:00:41]} c4 {[%emt 0:00:46]} 55. Ra6 {[%emt 0:00:09]} Rd4+ {[%emt 0:00:43]} 56. Ke3 {[%emt 0:00:16]} Rd3+ {[%emt 0:00:04]} 57. Kf4 {[%emt 0:00:17]} Kf6 {[%emt 0:01:04]} 58. a4 {[%emt 0:00:43]} Ke6 {[%emt 0:00:35]} 59. Ra8 {[%emt 0:02:29]} Ra3 {[%emt 0:00:29]} 60. a5 {[%emt 0:00:10]} Kd5 {[%emt 0:00:37]} 61. a6 {[%emt 0:00:33]} Kd4 {[%emt 0:00:26]} 62. a7 {[%emt 0:00:35]} d5 {[%emt 0:00:37]} 63. g4 {[%emt 0:00:07]} c3 {[%emt 0:00:14]} 64. h4 {[%emt 0:00:13]} c2 {[%emt 0:00:15]} 65. Rc8 {[%emt 0:00:10]} Kd3 {[%emt 0:00:12]} 66. g5 {[%emt 0:00:47]} hxg5+ {[%emt 0:00:13]} 67. hxg5 {[%emt 0:00:06]} Rxa7 {[%emt 0:00:06]} 68. Ke5 {[%emt 0:00:08]} d4 {[%emt 0:01:47]} 69. g6 {[%emt 0:00:07]} Rg7 {[%emt 0:00:17]} 70. Kf6 {[%emt 0:00:06]} Rxg6+ {[%emt 0:00:04]} 71. Kxg6 {[%emt 0:00:06]} Kd2 {[%emt 0:00:04]} 72. Kf5 {[%emt 0:00:06]} d3 {[%emt 0:01:32]} 73. Ke4 {[%emt 0:00:05]} c1=Q {[%emt 0:00:33]} 1/2-1/2

[Event "Romanian Open 2021"]
[Site "Alba Iulia"]
[Date "2021.11.21"]
[Round "1.5"]
[White "Pasztor, Balazs"]
[Black "Botea, David-Alexandru"]
[Result "1-0"]
[ECO "B08"]
[WhiteElo "2356"]
[BlackElo "2013"]
[Annotator "NA"]
[PlyCount "45"]
[EventDate "2021.11.21"]
[EventType "swiss"]
[EventCountry "ROU"]
[SourceTitle "playchess.com"]
[Source "ChessBase"]
[SourceQuality "1"]
[TimeControl "5400+30"]

1. e4 {[%emt 0:00:07]} d6 {[%emt 0:00:11]} 2. d4 {[%emt 0:00:06]} Nf6 {[%emt 0:00:11]} 3. Nc3 {[%emt 0:00:09]} g6 {[%emt 0:00:07]} 4. Nf3 {[%emt 0:00:10]} Bg7 {[%emt 0:00:06]} 5. Be3 {[%emt 0:00:08]} O-O {[%emt 0:00:26]} 6. Qd2 {[%emt 0:00:06]} a6 {[%emt 0:00:15]} 7. Bh6 {[%emt 0:02:08]} b5 {[%emt 0:00:10]} 8. Bd3 {[%emt 0:03:18]} Nc6 {[%emt 0:00:43]} 9. Bxg7 {[%emt 0:08:28]} Kxg7 {[%emt 0:00:08]} 10. e5 {[%emt 0:03:42]} Nd7 {[%emt 0:22:49]} 11. h4 {[%emt 0:04:42]} dxe5 {[%emt 0:07:20]} 12. h5 {[%emt 0:00:28]} Rh8 {[%emt 0:01:11]} 13. O-O-O {[%emt 0:05:27]} Nxd4 {[%emt 0:14:59]} 14. h6+ {[%emt 0:19:59]} Kg8 {[%emt 0:08:38]} 15. Nxd4 {[%emt 0:01:10]} exd4 {[%emt 0:00:18]} 16. Be4 {[%emt 0:00:05]} Rb8 {[%emt 0:11:56]} 17. Qxd4 {[%emt 0:00:10]} Qf8 {[%emt 0:01:31]} 18. Nd5 {[%emt 0:07:00]} Nf6 {[%emt 0:00:18]} 19. Nxf6+ {[%emt 0:03:09]} exf6 {[%emt 0:00:06]} 20. Qxf6 {[%emt 0:00:44]} Be6 {[%emt 0:01:19]} 21. Kb1 {[%emt 0:00:59]} Re8 {[%emt 0:01:12]} 22. Bc6 {[%emt 0:00:16]} Rb8 {[%emt 0:00:30]} 23. Rd2 {[%emt 0:00:47]} 1-0

[Event "Romanian Open 2021"]
[Site "Alba Iulia"]
[Date "2021.11.21"]
[Round "1.6"]
[White "Negrean, Andrei"]
[Black "Vajda, Albert"]
[Result "1/2-1/2"]
[ECO "B18"]
[WhiteElo "1847"]
[BlackElo "2353"]
[Annotator "NA"]
[PlyCount "79"]
[EventDate "2021.11.21"]
[EventType "swiss"]
[EventCountry "ROU"]
[SourceTitle "playchess.com"]
[Source "ChessBase"]
[SourceQuality "1"]
[TimeControl "5400+30"]

1. e4 {[%emt 0:00:06]} c6 {[%emt 0:00:05]} 2. d4 {[%emt 0:00:17]} d5 {[%emt 0:00:07]} 3. Nc3 {[%emt 0:00:23]} dxe4 {[%emt 0:00:13]} 4. Nxe4 {[%emt 0:00:23]} Bf5 {[%emt 0:00:09]} 5. Ng3 {[%emt 0:00:16]} Bg6 {[%emt 0:00:08]} 6. Nh3 {[%emt 0:00:43]} Nf6 {[%emt 0:02:09]} 7. Nf4 {[%emt 0:04:37]} Nd5 {[%emt 0:03:29]} 8. Nxg6 {[%emt 0:11:42]} hxg6 {[%emt 0:00:14]} 9. Ne4 {[%emt 0:12:48]} e6 {[%emt 0:06:20]} 10. g3 {[%emt 0:10:06]} Nf6 {[%emt 0:05:30]} 11. Bg2 {[%emt 0:10:06]} Nxe4 {[%emt 0:03:29]} 12. Bxe4 {[%emt 0:00:31]} Nd7 {[%emt 0:00:47]} 13. O-O {[%emt 0:08:43]} Nf6 {[%emt 0:04:39]} 14. Bg2 {[%emt 0:03:55]} Qa5 {[%emt 0:00:44]} 15. c3 {[%emt 0:08:24]} Bd6 {[%emt 0:10:04]} 16. Be3 {[%emt 0:05:13]} g5 {[%emt 0:06:40]} 17. b4 {[%emt 0:08:48]} Qf5 {[%emt 0:01:03]} 18. Qb1 {[%emt 0:05:19]} g4 {[%emt 0:06:19]} 19. Qxf5 {[%emt 0:01:33]} exf5 {[%emt 0:00:08]} 20. b5 {[%emt 0:02:53]} Kd7 {[%emt 0:01:34]} 21. Rab1 {[%emt 0:01:43]} Rab8 {[%emt 0:01:55]} 22. c4 {[%emt 0:02:17]} Bc7 {[%emt 0:13:25]} 23. Rb3 {[%emt 0:00:36]} Ne4 {[%emt 0:01:22]} 24. Bxe4 {[%emt 0:00:30]} fxe4 {[%emt 0:00:06]} 25. bxc6+ {[%emt 0:00:31]} bxc6 {[%emt 0:00:27]} 26. Rfb1 {[%emt 0:00:29]} Rxb3 {[%emt 0:04:35]} 27. Rxb3 {[%emt 0:00:26]} a5 {[%emt 0:03:13]} 28. Kg2 {[%emt 0:00:38]} f5 {[%emt 0:02:17]} 29. d5 {[%emt 0:00:29]} cxd5 {[%emt 0:02:51]} 30. cxd5 {[%emt 0:00:06]} g6 {[%emt 0:04:43]} 31. Rb7 {[%emt 0:00:28]} Kc8 {[%emt 0:01:55]} 32. Ra7 {[%emt 0:00:35]} Rd8 {[%emt 0:00:55]} 33. Ra8+ {[%emt 0:00:50]} Kb7 {[%emt 0:02:10]} 34. Ra7+ {[%emt 0:00:31]} Kb8 {[%emt 0:01:04]} 35. Ra6 {[%emt 0:00:23]} Rd6 {[%emt 0:02:22]} 36. Rxd6 {[%emt 0:01:12]} Bxd6 {[%emt 0:00:05]} 37. a4 {[%emt 0:00:00]} Kc7 {[%emt 0:00:39]} 38. h3 {[%emt 0:00:11]} gxh3+ {[%emt 0:06:40]} 39. Kxh3 {[%emt 0:00:07]} Be7 {[%emt 0:00:11]} 40. Kg2 {[%emt 0:01:42]} 1/2-1/2

[Event "Romanian Open 2021"]
[Site "Alba Iulia"]
[Date "2021.11.21"]
[Round "1.7"]
[White "Manea, Alexandru"]
[Black "Maria, Lia-Alexandra"]
[Result "1-0"]
[ECO "B23"]
[WhiteElo "2342"]
[BlackElo "1784"]
[Annotator "NA"]
[PlyCount "125"]
[EventDate "2021.11.21"]
[EventType "swiss"]
[EventCountry "ROU"]
[SourceTitle "playchess.com"]
[Source "ChessBase"]
[SourceQuality "1"]
[TimeControl "5400+30"]

1. e4 {[%emt 0:01:20]} c5 {[%emt 0:00:07]} 2. Nc3 {[%emt 0:00:07]} g6 {[%emt 0:00:08]} 3. h4 {[%emt 0:00:05]} h5 {[%emt 0:02:42]} 4. Nf3 {[%emt 0:03:23]} Nc6 {[%emt 0:00:50]} 5. d4 {[%emt 0:02:57]} cxd4 {[%emt 0:00:30]} 6. Nxd4 {[%emt 0:00:10]} Bg7 {[%emt 0:00:58]} 7. Nb3 {[%emt 0:00:28]} Nf6 {[%emt 0:00:48]} 8. Bg5 {[%emt 0:00:06]} a6 {[%emt 0:01:59]} 9. Qd2 {[%emt 0:00:18]} b5 {[%emt 0:01:02]} 10. f3 {[%emt 0:02:46]} d6 {[%emt 0:01:54]} 11. O-O-O {[%emt 0:02:58]} Be6 {[%emt 0:06:21]} 12. Nd5 {[%emt 0:00:45]} Bxd5 {[%emt 0:01:35]} 13. exd5 {[%emt 0:00:03]} Ne5 {[%emt 0:00:28]} 14. Be2 {[%emt 0:08:57]} Rc8 {[%emt 0:03:06]} 15. Qa5 {[%emt 0:09:33]} Qc7 {[%emt 0:01:57]} 16. Qxc7 {[%emt 0:01:40]} Rxc7 {[%emt 0:00:09]} 17. Kb1 {[%emt 0:00:15]} O-O {[%emt 0:04:11]} 18. c3 {[%emt 0:02:05]} Rb8 {[%emt 0:01:46]} 19. Rhg1 {[%emt 0:04:35]} Nc4 {[%emt 0:03:57]} 20. Bc1 {[%emt 0:12:27]} Nb6 {[%emt 0:02:27]} 21. g4 {[%emt 0:01:04]} hxg4 {[%emt 0:00:54]} 22. fxg4 {[%emt 0:03:21]} Nfxd5 {[%emt 0:01:08]} 23. Bf3 {[%emt 0:00:19]} e6 {[%emt 0:05:36]} 24. h5 {[%emt 0:00:05]} Be5 {[%emt 0:10:26]} 25. hxg6 {[%emt 0:01:41]} fxg6 {[%emt 0:00:10]} 26. Be4 {[%emt 0:00:06]} Kg7 {[%emt 0:01:44]} 27. Nd4 {[%emt 0:00:46]} Bxd4 {[%emt 0:01:51]} 28. Rxd4 {[%emt 0:00:15]} Nf6 {[%emt 0:04:59]} 29. Bc2 {[%emt 0:11:13]} Nbd5 {[%emt 0:02:19]} 30. Bb3 {[%emt 0:01:38]} b4 {[%emt 0:03:32]} 31. c4 {[%emt 0:03:31]} e5 {[%emt 0:01:09]} 32. Rdd1 {[%emt 0:05:06]} Nb6 {[%emt 0:00:53]} 33. Rxd6 {[%emt 0:00:39]} Nxc4 {[%emt 0:06:16]} 34. Rxa6 {[%emt 0:01:34]} Re8 {[%emt 0:02:09]} 35. g5 {[%emt 0:20:02]} Nd7 {[%emt 0:02:06]} 36. Rd1 {[%emt 0:01:07]} Ndb6 {[%emt 0:01:52]} 37. Bxc4 {[%emt 0:00:33]} Nxc4 {[%emt 0:00:12]} 38. b3 {[%emt 0:00:15]} Na3+ {[%emt 0:00:48]} 39. Bxa3 {[%emt 0:00:06]} bxa3 {[%emt 0:00:05]} 40. Rdd6 {[%emt 0:00:57]} Rec8 {[%emt 0:01:25]} 41. Rxg6+ {[%emt 0:00:08]} Kh7 {[%emt 0:00:30]} 42. Rh6+ {[%emt 0:00:03]} Kg7 {[%emt 0:00:10]} 43. Rhg6+ {[%emt 0:00:07]} Kh7 {[%emt 0:00:06]} 44. Rh6+ {[%emt 0:00:04]} Kg7 {[%emt 0:00:08]} 45. Rh1 {[%emt 0:02:26]} Rc3 {[%emt 0:02:12]} 46. Rxa3 {[%emt 0:00:11]} Kg6 {[%emt 0:00:06]} 47. Ra5 {[%emt 0:00:37]} Re3 {[%emt 0:00:22]} 48. Rg1 {[%emt 0:00:38]} e4 {[%emt 0:02:33]} 49. Ra6+ {[%emt 0:00:06]} Kf5 {[%emt 0:00:32]} 50. g6 {[%emt 0:00:04]} Kf4 {[%emt 0:01:38]} 51. g7 {[%emt 0:00:10]} Rg8 {[%emt 0:00:25]} 52. Rf6+ {[%emt 0:00:05]} Ke5 {[%emt 0:00:14]} 53. Rf8 {[%emt 0:00:06]} Rf3 {[%emt 0:00:14]} 54. Rxg8 {[%emt 0:00:07]} e3 {[%emt 0:00:09]} 55. Re8+ {[%emt 0:00:04]} Kd4 {[%emt 0:00:04]} 56. Rd1+ {[%emt 0:00:15]} Kc3 {[%emt 0:00:08]} 57. Rxe3+ {[%emt 0:00:07]} Rxe3 {[%emt 0:00:06]} 58. g8=Q {[%emt 0:00:05]} Re4 {[%emt 0:00:20]} 59. Rc1+ {[%emt 0:00:07]} Kb4 {[%emt 0:00:11]} 60. Qc4+ {[%emt 0:00:04]} Ka3 {[%emt 0:00:14]} 61. Qc5+ {[%emt 0:00:09]} Rb4 {[%emt 0:00:10]} 62. Qa5+ {[%emt 0:00:03]} Ra4 {[%emt 0:00:10]} 63. Qxa4# {[%emt 0:00:23]} 1-0

[Event "Romanian Open 2021"]
[Site "Alba Iulia"]
[Date "2021.11.21"]
[Round "1.8"]
[White "Butolo, Alexandru-Mircea"]
[Black "Pasti, Aron"]
[Result "0-1"]
[ECO "B80"]
[WhiteElo "1768"]
[BlackElo "2335"]
[Annotator "NA"]
[PlyCount "58"]
[EventDate "2021.11.21"]
[EventType "swiss"]
[EventCountry "ROU"]
[SourceTitle "playchess.com"]
[Source "ChessBase"]
[SourceQuality "1"]
[TimeControl "5400+30"]

1. e4 {[%emt 0:02:24]} c5 {[%emt 0:00:10]} 2. Nf3 {[%emt 0:00:23]} e6 {[%emt 0:00:05]} 3. g3 {[%emt 0:00:58]} Nc6 {[%emt 0:01:32]} 4. Bg2 {[%emt 0:03:12]} Nf6 {[%emt 0:05:07]} 5. Nc3 {[%emt 0:06:31]} d6 {[%emt 0:02:31]} 6. O-O {[%emt 0:05:20]} Be7 {[%emt 0:00:46]} 7. h3 {[%emt 0:02:04]} O-O {[%emt 0:01:38]} 8. d4 {[%emt 0:03:11]} cxd4 {[%emt 0:00:20]} 9. Nxd4 {[%emt 0:00:17]} a6 {[%emt 0:01:00]} 10. Be3 {[%emt 0:03:41]} Qc7 {[%emt 0:05:13]} 11. Qe2 {[%emt 0:05:32]} Bd7 {[%emt 0:02:28]} 12. a4 {[%emt 0:04:07]} Rab8 {[%emt 0:11:24]} 13. Rfd1 {[%emt 0:03:54]} Na5 {[%emt 0:10:43]} 14. Qd3 {[%emt 0:10:58]} Rfc8 {[%emt 0:08:40]} 15. f4 {[%emt 0:06:04]} Nc4 {[%emt 0:03:18]} 16. Bc1 {[%emt 0:00:18]} e5 {[%emt 0:06:38]} 17. Nde2 {[%emt 0:02:53]} b5 {[%emt 0:09:05]} 18. b3 {[%emt 0:04:33]} b4 {[%emt 0:03:53]} 19. bxc4 {[%emt 0:05:12]} bxc3 {[%emt 0:00:18]} 20. Ba3 {[%emt 0:00:37]} Be6 {[%emt 0:05:23]} 21. c5 {[%emt 0:04:50]} d5 {[%emt 0:11:45]} 22. exd5 {[%emt 0:03:31]} Bxc5+ {[%emt 0:00:03]} 23. Kh1 {[%emt 0:00:24]} e4 {[%emt 0:02:05]} 24. Bxe4 {[%emt 0:05:58]} Bxh3 {[%emt 0:00:07]} 25. Bf3 {[%emt 0:03:42]} Ng4 {[%emt 0:01:03]} 26. Bxg4 {[%emt 0:01:11]} Bxg4 {[%emt 0:00:06]} 27. Bxc5 {[%emt 0:00:06]} Qxc5 {[%emt 0:00:07]} 28. Re1 {[%emt 0:03:25]} Qf2 {[%emt 0:06:20]} 29. Nd4 {[%emt 0:01:50]} Rb6 {[%emt 0:00:22]} 0-1

[Event "Romanian Open 2021"]
[Site "Alba Iulia"]
[Date "2021.11.21"]
[Round "1.9"]
[White "Petre, Nad-Titus"]
[Black "Arion, Ilie"]
[Result "1-0"]
[ECO "A07"]
[WhiteElo "2319"]
[BlackElo "1758"]
[Annotator "NA"]
[PlyCount "83"]
[EventDate "2021.11.21"]
[EventType "swiss"]
[EventCountry "ROU"]
[SourceTitle "playchess.com"]
[Source "ChessBase"]
[SourceQuality "1"]
[TimeControl "5400+30"]

1. Nf3 {[%emt 0:00:15]} Nf6 {[%emt 0:00:41]} 2. g3 {[%emt 0:00:07]} d5 {[%emt 0:00:22]} 3. Bg2 {[%emt 0:00:59]} Bf5 {[%emt 0:00:39]} 4. O-O {[%emt 0:05:23]} e6 {[%emt 0:04:08]} 5. d3 {[%emt 0:00:42]} Be7 {[%emt 0:00:51]} 6. Nbd2 {[%emt 0:04:03]} O-O {[%emt 0:03:16]} 7. Qe1 {[%emt 0:00:25]} h6 {[%emt 0:00:53]} 8. e4 {[%emt 0:00:06]} Bh7 {[%emt 0:01:10]} 9. Qe2 {[%emt 0:07:40]} c5 {[%emt 0:07:42]} 10. Ne5 {[%emt 0:07:44]} dxe4 {[%emt 0:07:10]} 11. dxe4 {[%emt 0:03:38]} Qc7 {[%emt 0:02:24]} 12. Nec4 {[%emt 0:06:40]} Nc6 {[%emt 0:08:20]} 13. a4 {[%emt 0:02:51]} Nd4 {[%emt 0:02:56]} 14. Qd1 {[%emt 0:00:42]} Rad8 {[%emt 0:01:18]} 15. Re1 {[%emt 0:11:16]} Rfe8 {[%emt 0:03:21]} 16. c3 {[%emt 0:12:10]} Nc6 {[%emt 0:00:29]} 17. a5 {[%emt 0:00:53]} Ne5 {[%emt 0:01:53]} 18. Nxe5 {[%emt 0:00:15]} Qxe5 {[%emt 0:00:15]} 19. Qa4 {[%emt 0:03:15]} Qc7 {[%emt 0:03:41]} 20. Nc4 {[%emt 0:01:27]} Qc8 {[%emt 0:13:23]} 21. Bf4 {[%emt 0:00:53]} Bf8 {[%emt 0:02:25]} 22. Qb5 {[%emt 0:03:30]} Be7 {[%emt 0:03:12]} 23. h3 {[%emt 0:03:52]} Nh5 {[%emt 0:01:49]} 24. Be3 {[%emt 0:01:04]} Nf6 {[%emt 0:00:34]} 25. f3 {[%emt 0:01:03]} Qd7 {[%emt 0:02:22]} 26. Qb3 {[%emt 0:01:17]} Qc6 {[%emt 0:00:47]} 27. Bf2 {[%emt 0:01:52]} Bf8 {[%emt 0:02:16]} 28. Bf1 {[%emt 0:01:29]} Qc7 {[%emt 0:02:32]} 29. Qa4 {[%emt 0:02:56]} Qd7 {[%emt 0:00:32]} 30. Qxd7 {[%emt 0:03:18]} Rxd7 {[%emt 0:01:01]} 31. a6 {[%emt 0:01:04]} b6 {[%emt 0:01:50]} 32. g4 {[%emt 0:01:27]} Rc8 {[%emt 0:01:19]} 33. Red1 {[%emt 0:01:34]} Rxd1 {[%emt 0:01:17]} 34. Rxd1 {[%emt 0:00:07]} g5 {[%emt 0:04:05]} 35. Na3 {[%emt 0:01:25]} Be7 {[%emt 0:02:55]} 36. Nb5 {[%emt 0:00:15]} Ra8 {[%emt 0:00:33]} 37. Bg3 {[%emt 0:01:42]} Kf8 {[%emt 0:00:56]} 38. Be5 {[%emt 0:01:28]} Ne8 {[%emt 0:01:19]} 39. Rd7 {[%emt 0:01:29]} f6 {[%emt 0:00:14]} 40. Rxa7 {[%emt 0:02:12]} Rxa7 {[%emt 0:00:15]} 41. Nxa7 {[%emt 0:00:02]} fxe5 {[%emt 0:00:15]} 42. Nb5 {[%emt 0:00:12]} 1-0

[Event "Romanian Open 2021"]
[Site "Alba Iulia"]
[Date "2021.11.21"]
[Round "1.10"]
[White "Tudor, Henry Edward"]
[Black "Gheorghiu, Calin"]
[Result "0-1"]
[ECO "D38"]
[WhiteElo "1753"]
[BlackElo "2294"]
[Annotator "NA"]
[PlyCount "106"]
[EventDate "2021.11.21"]
[EventType "swiss"]
[EventCountry "ROU"]
[SourceTitle "playchess.com"]
[Source "ChessBase"]
[SourceQuality "1"]
[TimeControl "5400+30"]

1. d4 {[%emt 0:00:02]} Nf6 {[%emt 0:01:00]} 2. c4 {[%emt 0:00:13]} e6 {[%emt 0:01:48]} 3. Nc3 {[%emt 0:00:13]} Bb4 {[%emt 0:00:36]} 4. Qc2 {[%emt 0:00:30]} d5 {[%emt 0:01:35]} 5. Bg5 {[%emt 0:04:53]} h6 {[%emt 0:01:21]} 6. Bxf6 {[%emt 0:02:48]} Qxf6 {[%emt 0:00:05]} 7. e3 {[%emt 0:00:08]} c5 {[%emt 0:02:59]} 8. cxd5 {[%emt 0:07:11]} exd5 {[%emt 0:02:29]} 9. a3 {[%emt 0:03:29]} Bxc3+ {[%emt 0:09:25]} 10. Qxc3 {[%emt 0:01:07]} Nd7 {[%emt 0:05:10]} 11. Nf3 {[%emt 0:08:52]} O-O {[%emt 0:03:32]} 12. Be2 {[%emt 0:03:18]} b6 {[%emt 0:03:56]} 13. O-O {[%emt 0:00:55]} Bb7 {[%emt 0:00:28]} 14. Rac1 {[%emt 0:02:47]} c4 {[%emt 0:03:34]} 15. h3 {[%emt 0:05:51]} b5 {[%emt 0:00:40]} 16. Ne5 {[%emt 0:01:47]} Nxe5 {[%emt 0:12:25]} 17. dxe5 {[%emt 0:00:08]} Qe7 {[%emt 0:00:35]} 18. Bg4 {[%emt 0:03:25]} a5 {[%emt 0:08:44]} 19. f4 {[%emt 0:03:43]} f6 {[%emt 0:07:24]} 20. Qd4 {[%emt 0:06:00]} Kh8 {[%emt 0:08:47]} 21. Rf3 {[%emt 0:02:51]} b4 {[%emt 0:03:07]} 22. axb4 {[%emt 0:05:23]} axb4 {[%emt 0:00:58]} 23. Rg3 {[%emt 0:01:46]} fxe5 {[%emt 0:03:17]} 24. fxe5 {[%emt 0:00:53]} Rae8 {[%emt 0:04:03]} 25. e6 {[%emt 0:03:26]} Qf6 {[%emt 0:01:58]} 26. Rf3 {[%emt 0:01:53]} Qxd4 {[%emt 0:03:47]} 27. exd4 {[%emt 0:01:31]} Rxf3 {[%emt 0:00:16]} 28. gxf3 {[%emt 0:00:16]} h5 {[%emt 0:00:37]} 29. Bxh5 {[%emt 0:09:33]} Rxe6 {[%emt 0:00:01]} 30. Kf2 {[%emt 0:00:09]} g6 {[%emt 0:03:38]} 31. Bg4 {[%emt 0:00:09]} Ra6 {[%emt 0:02:00]} 32. Re1 {[%emt 0:01:26]} Bc6 {[%emt 0:02:15]} 33. Re6 {[%emt 0:00:36]} Kg7 {[%emt 0:00:25]} 34. Ke3 {[%emt 0:01:44]} c3 {[%emt 0:00:24]} 35. bxc3 {[%emt 0:05:34]} b3 {[%emt 0:00:06]} 36. Kd2 {[%emt 0:05:26]} Ra2+ {[%emt 0:00:18]} 37. Kc1 {[%emt 0:00:22]} Bb5 {[%emt 0:00:38]} 38. Re3 {[%emt 0:01:32]} Rc2+ {[%emt 0:00:56]} 39. Kb1 {[%emt 0:01:02]} Rd2 {[%emt 0:00:09]} 40. f4 {[%emt 0:02:24]} b2 {[%emt 0:01:31]} 41. Rg3 {[%emt 0:01:00]} Kf6 {[%emt 0:01:06]} 42. Re3 {[%emt 0:00:50]} Bd3+ {[%emt 0:01:54]} 43. Rxd3 {[%emt 0:00:03]} Rxd3 {[%emt 0:00:03]} 44. Kxb2 {[%emt 0:00:12]} Ke7 {[%emt 0:00:15]} 45. Kc2 {[%emt 0:02:03]} Rg3 {[%emt 0:00:12]} 46. Kd2 {[%emt 0:01:05]} Kf6 {[%emt 0:00:14]} 47. Kc2 {[%emt 0:00:11]} Rg2+ {[%emt 0:01:11]} 48. Kd3 {[%emt 0:00:50]} Ke7 {[%emt 0:00:15]} 49. Ke3 {[%emt 0:01:20]} Kd6 {[%emt 0:00:18]} 50. Kd3 {[%emt 0:00:36]} Kc6 {[%emt 0:00:14]} 51. Ke3 {[%emt 0:00:46]} Rg3+ {[%emt 0:00:30]} 52. Kd2 {[%emt 0:01:03]} Kb5 {[%emt 0:00:20]} 53. Be2+ {[%emt 0:01:06]} Ka4 {[%emt 0:00:04]} 0-1